[Event "Titled Tuesday Blitz December 06 Early 2022"]
[White "Zaichenko, Daria"]
[Black "Mihailidis, Anastasios"]
[WhiteFideId "4197453"]
[BlackFideId "4205588"]
[WhiteElo "2039"]
[BlackElo "2312"]
[Result "1-0"]
[Round "05"]
[TimeControl "180+1"]
[Date "2022.12.07"]
[WhiteClock "0:00:37"]
[BlackClock "0:00:16"]

1. e4 {[%clk 0:03:00]}  c5 {[%clk 0:02:59]} 2. Nf3 {[%clk 0:03:00]}  d6 {[%clk 0:03:00]} 3. d4 {[%clk 0:03:01]}  cxd4 {[%clk 0:03:01]} 4. Nxd4 {[%clk 0:03:01]}  Nf6 {[%clk 0:03:01]} 5. Nc3 {[%clk 0:03:01]}  g6 {[%clk 0:03:01]} 6. Be2 {[%clk 0:02:58]}  Bg7 {[%clk 0:03:01]} 7. O-O {[%clk 0:02:58]}  O-O {[%clk 0:03:01]} 8. Be3 {[%clk 0:02:58]}  Nc6 {[%clk 0:03:01]} 9. a4 {[%clk 0:02:57]}  a6 {[%clk 0:02:54]} 10. Nb3 {[%clk 0:02:55]}  Bd7 {[%clk 0:02:52]} 11. a5 {[%clk 0:02:55]}  Rc8 {[%clk 0:02:48]} 12. Bb6 {[%clk 0:02:45]}  Qe8 {[%clk 0:02:47]} 13. Nd5 {[%clk 0:02:45]}  Nxd5 {[%clk 0:02:45]} 14. exd5 {[%clk 0:02:45]}  Ne5 {[%clk 0:02:45]} 15. f4 {[%clk 0:02:41]}  Nc4 {[%clk 0:02:45]} 16. Bxc4 {[%clk 0:02:41]}  Rxc4 {[%clk 0:02:45]} 17. Nd2 {[%clk 0:02:39]}  Rc8 {[%clk 0:02:25]} 18. c3 {[%clk 0:02:38]}  Bb5 {[%clk 0:02:12]} 19. Re1 {[%clk 0:02:38]}  Qd7 {[%clk 0:02:12]} 20. Qf3 {[%clk 0:02:33]}  Rfe8 {[%clk 0:01:41]} 21. Re3 {[%clk 0:02:30]}  e5 {[%clk 0:01:40]} 22. dxe6 {[%clk 0:02:20]}  Rxe6 {[%clk 0:01:40]} 23. Rae1 {[%clk 0:02:13]}  Rce8 {[%clk 0:01:31]} 24. Rxe6 {[%clk 0:02:06]}  Rxe6 {[%clk 0:01:24]} 25. Rxe6 {[%clk 0:02:06]}  fxe6 {[%clk 0:01:24]} 26. h3 {[%clk 0:01:56]}  Bc6 {[%clk 0:01:20]} 27. Qg4 {[%clk 0:01:56]}  Bf6 {[%clk 0:01:05]} 28. Nf3 {[%clk 0:01:51]}  Bxf3 {[%clk 0:01:03]} 29. Qxf3 {[%clk 0:01:51]}  Qc6 {[%clk 0:01:00]} 30. Qxc6 {[%clk 0:01:50]}  bxc6 {[%clk 0:00:59]} 31. Kf2 {[%clk 0:01:44]}  Kf7 {[%clk 0:00:57]} 32. Ke3 {[%clk 0:01:44]}  e5 {[%clk 0:00:58]} 33. fxe5 {[%clk 0:01:40]}  Bxe5 {[%clk 0:00:58]} 34. Ke4 {[%clk 0:01:39]}  Ke6 {[%clk 0:00:57]} 35. Bd4 {[%clk 0:01:36]}  d5+ {[%clk 0:00:55]} 36. Ke3 {[%clk 0:01:34]}  Kd6 {[%clk 0:00:51]} 37. b4 {[%clk 0:01:33]}  Bh2 {[%clk 0:00:38]} 38. Kf3 {[%clk 0:01:22]}  Be5 {[%clk 0:00:33]} 39. Kg4 {[%clk 0:01:16]}  Bxd4 {[%clk 0:00:23]} 40. cxd4 {[%clk 0:01:15]}  Ke6 {[%clk 0:00:23]} 41. Kg5 {[%clk 0:01:10]}  Kf7 {[%clk 0:00:22]} 42. Kh6 {[%clk 0:01:08]}  Kg8 {[%clk 0:00:22]} 43. g4 {[%clk 0:01:05]}  Kh8 {[%clk 0:00:19]} 44. h4 {[%clk 0:01:05]}  Kg8 {[%clk 0:00:18]} 45. h5 {[%clk 0:00:44]}  gxh5 {[%clk 0:00:18]} 46. gxh5 {[%clk 0:00:44]}  Kh8 {[%clk 0:00:18]} 47. Kg5 {[%clk 0:00:44]}  Kg7 {[%clk 0:00:18]} 48. h6+ {[%clk 0:00:43]}  Kf7 {[%clk 0:00:19]} 49. Kf5 {[%clk 0:00:43]}  Ke7 {[%clk 0:00:19]} 50. Ke5 {[%clk 0:00:43]}  Kf7 {[%clk 0:00:15]} 51. Kd6 {[%clk 0:00:44]}  Kg6 {[%clk 0:00:16]} 52. Kxc6 {[%clk 0:00:44]}  Kxh6 {[%clk 0:00:17]} 53. b5 {[%clk 0:00:44]}  axb5 {[%clk 0:00:15]} 54. a6 {[%clk 0:00:37]}  b4 {[%clk 0:00:15]} 55. a7 {[%clk 0:00:38]}  b3 {[%clk 0:00:15]} 56. a8=Q {[%clk 0:00:38]}  b2 {[%clk 0:00:16]} 57. Qa2 {[%clk 0:00:37]} 1-0


[Site "https://www.chess.com"]

[Event "Titled Tuesday Blitz December 06 Early 2022"]
[White "Zaragatski, Ilja"]
[Black "Yeletsky, Ivan"]
[WhiteFideId "4655192"]
[BlackFideId "24180327"]
[WhiteElo "2460"]
[BlackElo "2391"]
[Result "0-1"]
[Round "05"]
[TimeControl "180+1"]
[Date "2022.12.07"]
[WhiteClock "0:00:34"]
[BlackClock "0:01:51"]

1. e4 {[%clk 0:03:00]}  Nf6 {[%clk 0:02:58]} 2. e5 {[%clk 0:03:00]}  Nd5 {[%clk 0:02:59]} 3. d4 {[%clk 0:03:01]}  d6 {[%clk 0:02:59]} 4. Nf3 {[%clk 0:03:00]}  dxe5 {[%clk 0:02:59]} 5. Nxe5 {[%clk 0:03:00]}  c6 {[%clk 0:03:00]} 6. Be2 {[%clk 0:02:52]}  Bf5 {[%clk 0:02:59]} 7. O-O {[%clk 0:02:51]}  Nd7 {[%clk 0:02:59]} 8. Nf3 {[%clk 0:02:50]}  e6 {[%clk 0:02:59]} 9. a3 {[%clk 0:02:48]}  Bd6 {[%clk 0:02:59]} 10. c4 {[%clk 0:02:48]}  Nf4 {[%clk 0:02:59]} 11. Bxf4 {[%clk 0:02:32]}  Bxf4 {[%clk 0:03:00]} 12. g3 {[%clk 0:02:32]}  Bd6 {[%clk 0:02:59]} 13. Nc3 {[%clk 0:02:27]}  O-O {[%clk 0:02:58]} 14. Re1 {[%clk 0:02:14]}  h6 {[%clk 0:02:49]} 15. Nh4 {[%clk 0:02:07]}  Bh3 {[%clk 0:02:46]} 16. Bg4 {[%clk 0:02:01]}  Bxg4 {[%clk 0:02:46]} 17. Qxg4 {[%clk 0:02:02]}  Nf6 {[%clk 0:02:33]} 18. Qf3 {[%clk 0:01:55]}  Re8 {[%clk 0:02:33]} 19. c5 {[%clk 0:01:49]}  Be7 {[%clk 0:02:29]} 20. Rad1 {[%clk 0:01:47]}  Nd5 {[%clk 0:02:28]} 21. Ng2 {[%clk 0:01:47]}  Bf6 {[%clk 0:02:24]} 22. Ne4 {[%clk 0:01:41]}  a5 {[%clk 0:02:21]} 23. Ne3 {[%clk 0:01:36]}  Be7 {[%clk 0:02:21]} 24. Nc4 {[%clk 0:01:35]}  a4 {[%clk 0:02:21]} 25. Ned6 {[%clk 0:01:33]}  Bxd6 {[%clk 0:02:20]} 26. Nxd6 {[%clk 0:01:34]}  Re7 {[%clk 0:02:21]} 27. h4 {[%clk 0:01:20]}  b5 {[%clk 0:02:20]} 28. h5 {[%clk 0:01:06]}  Rd7 {[%clk 0:02:20]} 29. Kh2 {[%clk 0:00:52]}  Rb8 {[%clk 0:02:20]} 30. Re4 {[%clk 0:00:48]}  Qf6 {[%clk 0:02:14]} 31. Qe2 {[%clk 0:00:43]}  b4 {[%clk 0:02:07]} 32. Nc4 {[%clk 0:00:37]}  bxa3 {[%clk 0:02:04]} 33. Ne5 {[%clk 0:00:37]}  Rc7 {[%clk 0:01:51]} 34. bxa3 {[%clk 0:00:34]}  Nc3 {[%clk 0:01:51]} 0-1


[Site "https://www.chess.com"]

[Event "Titled Tuesday Blitz December 06 Early 2022"]
[White "sabkeIXO"]
[Black "Zaksaite, Salomeja"]
[BlackFideId "12801496"]
[WhiteElo "2490"]
[BlackElo "2079"]
[Result "1-0"]
[Round "05"]
[TimeControl "180+1"]
[Date "2022.12.07"]
[WhiteClock "0:00:20"]
[BlackClock "0:00:05"]

1. e4 {[%clk 0:02:58]}  c5 {[%clk 0:02:59]} 2. Nc3 {[%clk 0:02:56]}  e6 {[%clk 0:02:58]} 3. f4 {[%clk 0:02:56]}  d5 {[%clk 0:02:56]} 4. Bb5+ {[%clk 0:02:54]}  Nc6 {[%clk 0:02:54]} 5. Nf3 {[%clk 0:02:49]}  d4 {[%clk 0:02:54]} 6. Bxc6+ {[%clk 0:02:48]}  bxc6 {[%clk 0:02:51]} 7. Na4 {[%clk 0:02:47]}  Nf6 {[%clk 0:02:41]} 8. d3 {[%clk 0:02:47]}  Be7 {[%clk 0:02:40]} 9. b3 {[%clk 0:02:47]}  O-O {[%clk 0:02:39]} 10. O-O {[%clk 0:02:47]}  Nd7 {[%clk 0:02:37]} 11. Ba3 {[%clk 0:02:44]}  Qa5 {[%clk 0:02:35]} 12. Qd2 {[%clk 0:02:41]}  Qb5 {[%clk 0:02:34]} 13. Rae1 {[%clk 0:02:32]}  Nb6 {[%clk 0:02:34]} 14. Nxd4 {[%clk 0:02:09]}  cxd4 {[%clk 0:02:31]} 15. Bxe7 {[%clk 0:02:08]}  Re8 {[%clk 0:02:26]} 16. Nxb6 {[%clk 0:02:08]}  axb6 {[%clk 0:02:25]} 17. a4 {[%clk 0:02:08]}  Qh5 {[%clk 0:01:50]} 18. Bd6 {[%clk 0:02:02]}  Bb7 {[%clk 0:01:16]} 19. Rf3 {[%clk 0:01:51]}  f6 {[%clk 0:01:12]} 20. Ba3 {[%clk 0:01:29]}  b5 {[%clk 0:01:09]} 21. a5 {[%clk 0:01:27]}  c5 {[%clk 0:01:08]} 22. Rh3 {[%clk 0:01:24]}  Qf7 {[%clk 0:01:04]} 23. Bxc5 {[%clk 0:01:23]}  Red8 {[%clk 0:00:53]} 24. b4 {[%clk 0:01:23]}  f5 {[%clk 0:00:48]} 25. exf5 {[%clk 0:01:14]}  Qxf5 {[%clk 0:00:45]} 26. Re5 {[%clk 0:01:11]}  Qf7 {[%clk 0:00:41]} 27. Qe2 {[%clk 0:01:08]}  Bd5 {[%clk 0:00:16]} 28. Rg3 {[%clk 0:01:06]}  g6 {[%clk 0:00:12]} 29. h3 {[%clk 0:00:57]}  Rd7 {[%clk 0:00:09]} 30. Bxd4 {[%clk 0:00:43]}  Bxg2 {[%clk 0:00:08]} 31. c3 {[%clk 0:00:39]}  Bd5 {[%clk 0:00:06]} 32. Qe3 {[%clk 0:00:32]}  Ra6 {[%clk 0:00:05]} 33. Reg5 {[%clk 0:00:32]}  Ba8 {[%clk 0:00:05]} 34. Qe5 {[%clk 0:00:31]}  Rxd4 {[%clk 0:00:04]} 35. Qxd4 {[%clk 0:00:31]}  Qb7 {[%clk 0:00:02]} 36. Qe4 {[%clk 0:00:19]}  Qxe4 {[%clk 0:00:01]} 37. dxe4 {[%clk 0:00:20]}  Bxe4 {[%clk 0:00:01]} 38. Re5 {[%clk 0:00:21]}  Bd5 {[%clk 0:00:01]} 39. Rge3 {[%clk 0:00:20]}  Kf7 {[%clk 0:00:02]} 40. Kf2 {[%clk 0:00:21]}  Kf6 {[%clk 0:00:03]} 41. Ke2 {[%clk 0:00:21]}  Ra8 {[%clk 0:00:04]} 42. Kd2 {[%clk 0:00:21]}  Ra6 {[%clk 0:00:04]} 43. Rxd5 {[%clk 0:00:21]}  Rc6 {[%clk 0:00:05]} 44. Rxb5 {[%clk 0:00:20]} 1-0


[Site "https://www.chess.com"]

[Event "Titled Tuesday Blitz December 06 Early 2022"]
[White "Barria Zuniga, Daniel"]
[Black "Osinovsky, Stepan"]
[WhiteFideId "3400816"]
[BlackFideId "4157354"]
[WhiteElo "2414"]
[BlackElo "2222"]
[Result "0-1"]
[Round "06"]
[TimeControl "180+1"]
[Date "2022.12.07"]
[WhiteClock "0:00:01"]
[BlackClock "0:00:28"]

1. d4 {[%clk 0:01:04]}  Nf6 {[%clk 0:02:36]} 2. c4 {[%clk 0:01:04]}  g6 {[%clk 0:02:37]} 3. Nc3 {[%clk 0:01:04]}  Bg7 {[%clk 0:02:38]} 4. e4 {[%clk 0:01:04]}  O-O {[%clk 0:02:39]} 5. Be2 {[%clk 0:01:04]}  d6 {[%clk 0:02:39]} 6. Nf3 {[%clk 0:01:04]}  Nbd7 {[%clk 0:02:39]} 7. e5 {[%clk 0:01:02]}  Ne8 {[%clk 0:02:27]} 8. exd6 {[%clk 0:01:02]}  Nxd6 {[%clk 0:02:25]} 9. O-O {[%clk 0:00:59]}  c5 {[%clk 0:02:23]} 10. d5 {[%clk 0:00:58]}  a6 {[%clk 0:02:10]} 11. a4 {[%clk 0:00:57]}  Qa5 {[%clk 0:01:36]} 12. Bd2 {[%clk 0:00:45]}  Qb4 {[%clk 0:01:35]} 13. a5 {[%clk 0:00:42]}  Nxc4 {[%clk 0:01:32]} 14. Na2 {[%clk 0:00:18]}  Nxb2 {[%clk 0:01:11]} 15. Qc2 {[%clk 0:00:18]}  Qa4 {[%clk 0:00:57]} 16. Qb1 {[%clk 0:00:18]}  c4 {[%clk 0:00:48]} 17. Nc3 {[%clk 0:00:17]}  Qb3 {[%clk 0:00:48]} 18. Qc1 {[%clk 0:00:11]}  Nc5 {[%clk 0:00:44]} 19. Rb1 {[%clk 0:00:07]}  Ncd3 {[%clk 0:00:31]} 20. Bxd3 {[%clk 0:00:07]}  Nxd3 {[%clk 0:00:31]} 21. Qd1 {[%clk 0:00:03]}  Qxd1 {[%clk 0:00:31]} 22. Rfxd1 {[%clk 0:00:04]}  Rd8 {[%clk 0:00:29]} 23. Ra1 {[%clk 0:00:02]}  Bg4 {[%clk 0:00:28]} 24. Ra4 {[%clk 0:00:02]}  Rac8 {[%clk 0:00:28]} 25. h3 {[%clk 0:00:01]}  Bxf3 {[%clk 0:00:28]} 26. gxf3 {[%clk 0:00:02]}  Nb2 {[%clk 0:00:29]} 27. Rb1 {[%clk 0:00:01]}  Nxa4 {[%clk 0:00:28]} 28. Nxa4 {[%clk 0:00:01]}  Rxd5 {[%clk 0:00:28]} 0-1


[Site "https://www.chess.com"]

[Event "Titled Tuesday Blitz December 06 Early 2022"]
[White "Begunov, Konstantin"]
[Black "Chlpik, Martin"]
[WhiteFideId "4118510"]
[BlackFideId "14923351"]
[WhiteElo "2141"]
[BlackElo "2109"]
[Result "1-0"]
[Round "06"]
[TimeControl "180+1"]
[Date "2022.12.07"]
[WhiteClock "0:00:21"]
[BlackClock "0:00:19"]

1. d4 {[%clk 0:03:00]}  Nf6 {[%clk 0:02:58]} 2. c4 {[%clk 0:03:00]}  c5 {[%clk 0:02:59]} 3. Nf3 {[%clk 0:03:00]}  cxd4 {[%clk 0:02:58]} 4. Nxd4 {[%clk 0:03:01]}  e5 {[%clk 0:02:59]} 5. Nb5 {[%clk 0:03:01]}  d5 {[%clk 0:02:59]} 6. cxd5 {[%clk 0:03:02]}  Bc5 {[%clk 0:03:00]} 7. d6 {[%clk 0:03:02]}  Bxf2+ {[%clk 0:02:41]} 8. Kxf2 {[%clk 0:03:01]}  Qb6+ {[%clk 0:02:37]} 9. e3 {[%clk 0:03:00]}  Ng4+ {[%clk 0:02:29]} 10. Ke1 {[%clk 0:02:35]}  Nxe3 {[%clk 0:02:29]} 11. Bxe3 {[%clk 0:02:30]}  Qxe3+ {[%clk 0:02:28]} 12. Be2 {[%clk 0:02:29]}  O-O {[%clk 0:02:01]} 13. Nc7 {[%clk 0:02:27]}  Nc6 {[%clk 0:02:01]} 14. Nxa8 {[%clk 0:02:25]}  Bg4 {[%clk 0:01:54]} 15. Nc7 {[%clk 0:01:47]}  Bxe2 {[%clk 0:01:37]} 16. Qxe2 {[%clk 0:01:30]}  Qc1+ {[%clk 0:01:37]} 17. Qd1 {[%clk 0:01:29]}  Qxb2 {[%clk 0:01:32]} 18. Nd2 {[%clk 0:01:28]}  Nd4 {[%clk 0:01:24]} 19. Rb1 {[%clk 0:01:12]}  Qa3 {[%clk 0:01:24]} 20. Nb5 {[%clk 0:01:00]}  Qe3+ {[%clk 0:01:22]} 21. Kf1 {[%clk 0:00:55]}  Qd3+ {[%clk 0:01:22]} 22. Kf2 {[%clk 0:00:52]}  Nxb5 {[%clk 0:01:17]} 23. Nf3 {[%clk 0:00:47]}  Qc4 {[%clk 0:01:09]} 24. Re1 {[%clk 0:00:44]}  Nc3 {[%clk 0:01:01]} 25. Qc2 {[%clk 0:00:37]}  e4 {[%clk 0:00:45]} 26. Rbc1 {[%clk 0:00:26]}  Qc5+ {[%clk 0:00:37]} 27. Re3 {[%clk 0:00:24]}  exf3 {[%clk 0:00:20]} 28. Qxc3 {[%clk 0:00:23]}  Qxd6 {[%clk 0:00:20]} 29. Rxf3 {[%clk 0:00:23]}  Qxh2 {[%clk 0:00:20]} 30. Rg3 {[%clk 0:00:22]}  Qh4 {[%clk 0:00:19]} 31. Qxg7# {[%clk 0:00:21]} 1-0


[Site "https://www.chess.com"]

[Event "Titled Tuesday Blitz December 06 Early 2022"]
[White "Bok, Benjamin"]
[Black "Putnam, Liam"]
[WhiteFideId "1017063"]
[BlackFideId "30938279"]
[WhiteElo "2658"]
[BlackElo "2082"]
[Result "1-0"]
[Round "06"]
[TimeControl "180+1"]
[Date "2022.12.06"]
[WhiteClock "0:00:21"]
[BlackClock "0:00:02"]

1. d4 {[%clk 0:03:00]}  Nf6 {[%clk 0:02:58]} 2. c4 {[%clk 0:03:01]}  g6 {[%clk 0:02:57]} 3. g3 {[%clk 0:03:01]}  Bg7 {[%clk 0:02:57]} 4. Bg2 {[%clk 0:03:01]}  O-O {[%clk 0:02:58]} 5. Nc3 {[%clk 0:03:01]}  Nc6 {[%clk 0:02:52]} 6. Nf3 {[%clk 0:03:00]}  d5 {[%clk 0:02:52]} 7. cxd5 {[%clk 0:02:58]}  Nxd5 {[%clk 0:02:53]} 8. O-O {[%clk 0:02:57]}  Nb6 {[%clk 0:02:43]} 9. d5 {[%clk 0:02:48]}  Na5 {[%clk 0:02:25]} 10. e4 {[%clk 0:02:47]}  c6 {[%clk 0:02:23]} 11. Bf4 {[%clk 0:02:47]}  Nac4 {[%clk 0:02:18]} 12. b3 {[%clk 0:02:47]}  Bxc3 {[%clk 0:01:54]} 13. bxc4 {[%clk 0:02:46]}  cxd5 {[%clk 0:01:38]} 14. cxd5 {[%clk 0:02:45]}  Bxa1 {[%clk 0:01:37]} 15. Qxa1 {[%clk 0:02:46]}  f6 {[%clk 0:01:37]} 16. Bh6 {[%clk 0:02:13]}  Re8 {[%clk 0:01:35]} 17. e5 {[%clk 0:02:09]}  Qxd5 {[%clk 0:01:05]} 18. exf6 {[%clk 0:02:09]}  exf6 {[%clk 0:01:03]} 19. Qxf6 {[%clk 0:01:51]}  Qf7 {[%clk 0:01:03]} 20. Qa1 {[%clk 0:01:22]}  Bf5 {[%clk 0:00:43]} 21. Ng5 {[%clk 0:01:17]}  Qe7 {[%clk 0:00:43]} 22. a4 {[%clk 0:01:13]}  Qe5 {[%clk 0:00:33]} 23. a5 {[%clk 0:01:02]}  Nd7 {[%clk 0:00:17]} 24. Bd5+ {[%clk 0:00:59]}  Be6 {[%clk 0:00:06]} 25. Bxe6+ {[%clk 0:00:55]}  Rxe6 {[%clk 0:00:05]} 26. Nxe6 {[%clk 0:00:55]}  Re8 {[%clk 0:00:04]} 27. Qxe5 {[%clk 0:00:41]}  Nxe5 {[%clk 0:00:05]} 28. Nc7 {[%clk 0:00:41]}  Rc8 {[%clk 0:00:04]} 29. Nd5 {[%clk 0:00:40]}  Rc5 {[%clk 0:00:04]} 30. Nf6+ {[%clk 0:00:23]}  Kf7 {[%clk 0:00:05]} 31. Nxh7 {[%clk 0:00:24]}  Nf3+ {[%clk 0:00:03]} 32. Kg2 {[%clk 0:00:23]}  Ne5 {[%clk 0:00:01]} 33. Rb1 {[%clk 0:00:20]}  Rxa5 {[%clk 0:00:01]} 34. Rxb7+ {[%clk 0:00:20]}  Ke6 {[%clk 0:00:02]} 35. Be3 {[%clk 0:00:19]}  Nc6 {[%clk 0:00:01]} 36. Ng5+ {[%clk 0:00:19]}  Kd6 {[%clk 0:00:02]} 37. h4 {[%clk 0:00:19]}  Ra2 {[%clk 0:00:01]} 38. Ne4+ {[%clk 0:00:19]}  Ke6 {[%clk 0:00:01]} 39. Nc5+ {[%clk 0:00:19]}  Kd5 {[%clk 0:00:02]} 40. Nd3 {[%clk 0:00:19]}  a5 {[%clk 0:00:02]} 41. Rb5+ {[%clk 0:00:19]}  Kc4 {[%clk 0:00:02]} 42. Rc5+ {[%clk 0:00:19]}  Kxd3 {[%clk 0:00:03]} 43. Rxc6 {[%clk 0:00:20]}  a4 {[%clk 0:00:04]} 44. Rxg6 {[%clk 0:00:21]}  a3 {[%clk 0:00:04]} 45. Ra6 {[%clk 0:00:21]}  Ra1 {[%clk 0:00:04]} 46. h5 {[%clk 0:00:22]}  a2 {[%clk 0:00:04]} 47. h6 {[%clk 0:00:22]}  Kc2 {[%clk 0:00:05]} 48. h7 {[%clk 0:00:22]}  Kd1 {[%clk 0:00:04]} 49. h8=Q {[%clk 0:00:22]}  Rb1 {[%clk 0:00:03]} 50. Rxa2 {[%clk 0:00:21]}  Ke1 {[%clk 0:00:02]} 51. Qh1# {[%clk 0:00:21]} 1-0


[Site "https://www.chess.com"]

[Event "Titled Tuesday Blitz December 06 Early 2022"]
[White "Bon, Michael"]
[Black "Estrada Nieto, Julian"]
[WhiteFideId "620696"]
[BlackFideId "5101018"]
[WhiteElo "2387"]
[BlackElo "2195"]
[Result "0-1"]
[Round "06"]
[TimeControl "180+1"]
[Date "2022.12.07"]
[WhiteClock "0:00:13"]
[BlackClock "0:00:07"]

1. e4 {[%clk 0:03:00]}  e5 {[%clk 0:02:54]} 2. Nf3 {[%clk 0:03:00]}  Nc6 {[%clk 0:02:53]} 3. Bc4 {[%clk 0:03:00]}  Bc5 {[%clk 0:02:53]} 4. c3 {[%clk 0:03:00]}  Nf6 {[%clk 0:02:53]} 5. d3 {[%clk 0:03:01]}  d6 {[%clk 0:02:53]} 6. h3 {[%clk 0:02:56]}  a6 {[%clk 0:02:49]} 7. Bb3 {[%clk 0:02:56]}  Ba7 {[%clk 0:02:49]} 8. g4 {[%clk 0:02:55]}  h6 {[%clk 0:02:39]} 9. Nbd2 {[%clk 0:02:49]}  Be6 {[%clk 0:02:37]} 10. Bc2 {[%clk 0:02:47]}  d5 {[%clk 0:02:33]} 11. Qe2 {[%clk 0:02:42]}  Qd7 {[%clk 0:02:31]} 12. Nf1 {[%clk 0:02:27]}  O-O-O {[%clk 0:02:19]} 13. Ng3 {[%clk 0:02:16]}  g6 {[%clk 0:02:08]} 14. Be3 {[%clk 0:02:06]}  d4 {[%clk 0:02:04]} 15. Bd2 {[%clk 0:02:01]}  Kb8 {[%clk 0:01:58]} 16. c4 {[%clk 0:01:59]}  Bc5 {[%clk 0:01:43]} 17. a3 {[%clk 0:01:56]}  a5 {[%clk 0:01:42]} 18. Ba4 {[%clk 0:01:47]}  Qd6 {[%clk 0:01:34]} 19. Bxc6 {[%clk 0:01:46]}  bxc6 {[%clk 0:01:30]} 20. b4 {[%clk 0:01:43]}  axb4 {[%clk 0:01:26]} 21. axb4 {[%clk 0:01:24]}  Bxb4 {[%clk 0:01:23]} 22. O-O {[%clk 0:01:22]}  c5 {[%clk 0:01:13]} 23. Rfb1 {[%clk 0:01:08]}  Kc8 {[%clk 0:01:13]} 24. Bxb4 {[%clk 0:00:53]}  cxb4 {[%clk 0:01:12]} 25. c5 {[%clk 0:00:54]}  Qxc5 {[%clk 0:01:08]} 26. Rc1 {[%clk 0:00:54]}  Qd6 {[%clk 0:01:07]} 27. Ra5 {[%clk 0:00:45]}  Nxg4 {[%clk 0:00:59]} 28. hxg4 {[%clk 0:00:40]}  Bxg4 {[%clk 0:00:59]} 29. Qc2 {[%clk 0:00:26]}  Bxf3 {[%clk 0:00:52]} 30. Qa4 {[%clk 0:00:25]}  Qb6 {[%clk 0:00:27]} 31. Ra8+ {[%clk 0:00:24]}  Kb7 {[%clk 0:00:27]} 32. Ra7+ {[%clk 0:00:08]}  Qxa7 {[%clk 0:00:26]} 33. Rxc7+ {[%clk 0:00:08]}  Kxc7 {[%clk 0:00:26]} 34. Qxa7+ {[%clk 0:00:08]}  Kd6 {[%clk 0:00:25]} 35. Qb6+ {[%clk 0:00:07]}  Ke7 {[%clk 0:00:24]} 36. Qxb4+ {[%clk 0:00:07]}  Kf6 {[%clk 0:00:22]} 37. Qc5 {[%clk 0:00:04]}  Kg7 {[%clk 0:00:20]} 38. Kh2 {[%clk 0:00:03]}  Rhe8 {[%clk 0:00:19]} 39. Nf1 {[%clk 0:00:02]}  h5 {[%clk 0:00:18]} 40. Kg3 {[%clk 0:00:02]}  Bg4 {[%clk 0:00:18]} 41. Nd2 {[%clk 0:00:03]}  Rc8 {[%clk 0:00:16]} 42. Qa5 {[%clk 0:00:03]}  Rc2 {[%clk 0:00:16]} 43. Nc4 {[%clk 0:00:03]}  Rc3 {[%clk 0:00:13]} 44. Qa4 {[%clk 0:00:03]}  Rxd3+ {[%clk 0:00:12]} 45. Kg2 {[%clk 0:00:02]}  Re6 {[%clk 0:00:12]} 46. f3 {[%clk 0:00:02]}  Bxf3+ {[%clk 0:00:12]} 47. Kf2 {[%clk 0:00:03]}  Rf6 {[%clk 0:00:12]} 48. Ke1 {[%clk 0:00:03]}  Rd1+ {[%clk 0:00:11]} 49. Qxd1 {[%clk 0:00:03]}  Bxd1 {[%clk 0:00:10]} 50. Kxd1 {[%clk 0:00:04]}  Rf4 {[%clk 0:00:11]} 51. Nxe5 {[%clk 0:00:04]}  Rxe4 {[%clk 0:00:11]} 52. Nd3 {[%clk 0:00:05]}  h4 {[%clk 0:00:10]} 53. Nf2 {[%clk 0:00:06]}  Rf4 {[%clk 0:00:10]} 54. Nh3 {[%clk 0:00:06]}  g5 {[%clk 0:00:09]} 55. Nxg5 {[%clk 0:00:05]}  Rg4 {[%clk 0:00:09]} 56. Nh3 {[%clk 0:00:05]}  Kg6 {[%clk 0:00:09]} 57. Nf2 {[%clk 0:00:06]}  Rg3 {[%clk 0:00:09]} 58. Ke2 {[%clk 0:00:06]}  Kf5 {[%clk 0:00:09]} 59. Kf1 {[%clk 0:00:07]}  h3 {[%clk 0:00:09]} 60. Nh1 {[%clk 0:00:07]}  Re3 {[%clk 0:00:08]} 61. Kf2 {[%clk 0:00:07]}  Ke4 {[%clk 0:00:08]} 62. Ng3+ {[%clk 0:00:07]}  Rxg3 {[%clk 0:00:08]} 63. Ke2 {[%clk 0:00:08]}  d3+ {[%clk 0:00:08]} 64. Kd2 {[%clk 0:00:08]}  Rg2+ {[%clk 0:00:08]} 65. Ke1 {[%clk 0:00:09]}  d2+ {[%clk 0:00:08]} 66. Kd1 {[%clk 0:00:08]}  Ke3 {[%clk 0:00:08]} 67. Kc2 {[%clk 0:00:08]}  h2 {[%clk 0:00:08]} 68. Kd1 {[%clk 0:00:08]}  Rg1+ {[%clk 0:00:08]} 69. Kc2 {[%clk 0:00:09]}  d1=Q+ {[%clk 0:00:09]} 70. Kc3 {[%clk 0:00:10]}  Qb1 {[%clk 0:00:08]} 71. Kc4 {[%clk 0:00:11]}  Rc1+ {[%clk 0:00:08]} 72. Kd5 {[%clk 0:00:12]}  Qe4+ {[%clk 0:00:08]} 73. Kd6 {[%clk 0:00:12]}  Rc6+ {[%clk 0:00:08]} 74. Kd7 {[%clk 0:00:12]}  Qe6+ {[%clk 0:00:08]} 75. Kd8 {[%clk 0:00:13]}  Rc8# {[%clk 0:00:07]} 0-1


[Site "https://www.chess.com"]

[Event "Titled Tuesday Blitz December 06 Early 2022"]
[White "Chigaev, Maksim"]
[Black "Gormally, Daniel W"]
[WhiteFideId "4108116"]
[BlackFideId "406465"]
[WhiteElo "2542"]
[BlackElo "2553"]
[Result "0-1"]
[Round "06"]
[TimeControl "180+1"]
[Date "2022.12.06"]
[WhiteClock "0:00:04"]
[BlackClock "0:00:22"]

1. e4 {[%clk 0:03:00]}  c5 {[%clk 0:02:59]} 2. Nf3 {[%clk 0:02:53]}  d6 {[%clk 0:02:59]} 3. d4 {[%clk 0:02:51]}  cxd4 {[%clk 0:03:00]} 4. Nxd4 {[%clk 0:02:52]}  Nf6 {[%clk 0:03:00]} 5. Nc3 {[%clk 0:02:53]}  Nc6 {[%clk 0:03:00]} 6. Bg5 {[%clk 0:02:52]}  e6 {[%clk 0:03:00]} 7. Bb5 {[%clk 0:02:49]}  Qb6 {[%clk 0:02:58]} 8. Qd3 {[%clk 0:02:45]}  Be7 {[%clk 0:02:57]} 9. Be3 {[%clk 0:02:28]}  Qc7 {[%clk 0:02:57]} 10. O-O-O {[%clk 0:02:17]}  O-O {[%clk 0:02:52]} 11. Bxc6 {[%clk 0:02:13]}  bxc6 {[%clk 0:02:52]} 12. f4 {[%clk 0:02:13]}  d5 {[%clk 0:02:37]} 13. e5 {[%clk 0:02:06]}  Nd7 {[%clk 0:02:37]} 14. h4 {[%clk 0:00:57]}  c5 {[%clk 0:02:28]} 15. Nf5 {[%clk 0:00:25]}  exf5 {[%clk 0:02:21]} 16. Nxd5 {[%clk 0:00:25]}  Qd8 {[%clk 0:02:22]} 17. Qc3 {[%clk 0:00:25]}  Bb7 {[%clk 0:01:39]} 18. h5 {[%clk 0:00:23]}  Bxd5 {[%clk 0:01:33]} 19. Rxd5 {[%clk 0:00:20]}  Qc7 {[%clk 0:01:34]} 20. h6 {[%clk 0:00:20]}  Nb6 {[%clk 0:00:58]} 21. Rd6 {[%clk 0:00:06]}  g6 {[%clk 0:00:54]} 22. Rhd1 {[%clk 0:00:06]}  Qb7 {[%clk 0:00:48]} 23. Qxc5 {[%clk 0:00:03]}  Rac8 {[%clk 0:00:43]} 24. Qb5 {[%clk 0:00:03]}  Qe4 {[%clk 0:00:39]} 25. R6d3 {[%clk 0:00:03]}  Nc4 {[%clk 0:00:36]} 26. Bxa7 {[%clk 0:00:02]}  Qxf4+ {[%clk 0:00:36]} 27. Kb1 {[%clk 0:00:03]}  Qxe5 {[%clk 0:00:24]} 28. Qxe5 {[%clk 0:00:03]}  Nxe5 {[%clk 0:00:24]} 29. Rb3 {[%clk 0:00:03]}  Nc4 {[%clk 0:00:22]} 30. Bd4 {[%clk 0:00:04]}  Rfd8 {[%clk 0:00:22]} 0-1


[Site "https://www.chess.com"]